[Event "Czech Extraliga 2023-24"]
[Site "Czech Republic"]
[Date "2024.01.28"]
[Round "6.5"]
[White "NOV6 Grandelius Nils GM"]
[Black "BSS7 Piesik Piotr IM"]
[Result "1-0"]
[ECO "B13"]
[WhiteElo "2689"]
[BlackElo "2426"]
[Annotator "TA"]
[PlyCount "147"]
[EventDate "2023.10.14"]
[EventCountry "CZE"]
[SourceTitle "playchess.com"]
[Source "ChessBase"]
[SourceQuality "1"]
[TimeControl "40/5400+30:1800+30"]

{[%evp 72,147,10,-6,14,-16,0,0,0,0,176,188,184,189,179,172,165,107,103,115,255,168,162,170,174,165,166,158,167,172,238,247,245,245,226,227,246,247,100,338,446,447,430,404,591,518,768,768,845,843,845,814,1353,1399,1123,1032,1140,1137,1050,1041,993,648,657,639,29964,1138,966,935,29979,29980,29980,29981,29981,29982,29981,29981,29986,29987]} 1. e4 {[%emt 0:01:43]} c6 {[%emt 0:00:25]} 2. d4 {[%emt 0:03:32]} d5 {[%emt 0:00:54]} 3. exd5 {[%emt 0:00:32]} cxd5 {[%emt 0:00:07]} 4. Nf3 {[%emt 0:00:03]} Nf6 {[%emt 0:02:13]} 5. Ne5 {[%emt 0:01:53]} g6 {[%emt 0:01:57]} 6. Bb5+ {[%emt 0:03:54]} Nbd7 {[%emt 0:00:14]} 7. O-O {[%emt 0:00:07]} a6 {[%emt 0:04:09]} 8. Bd3 {[%emt 0:04:49]} Nxe5 {[%emt 0:06:00]} 9. dxe5 {[%emt 0:00:08]} Ng4 {[%emt 0:00:02]} 10. Bf4 {[%emt 0:07:15]} Bg7 {[%emt 0:08:02]} 11. Re1 {[%emt 0:06:11]} Qb6 {[%emt 0:07:58]} 12. Qd2 {[%emt 0:13:54]} g5 {[%emt 0:16:09]} 13. Bxg5 {[%emt 0:08:57]} Nxe5 {[%emt 0:00:47]} 14. Nc3 {[%emt 0:04:20]} Be6 {[%emt 0:00:48]} 15. Ne2 {[%emt 0:14:02]} O-O-O {[%emt 0:14:26]} 16. Qc3+ {[%emt 0:10:26]} Kd7 {[%emt 0:13:37]} 17. Qa3 {[%emt 0:00:07]} Qd6 {[%emt 0:01:52]} 18. Qb3 {[%emt 0:00:36]} Kc8 {[%emt 0:01:50]} 19. Nd4 {[%emt 0:01:14]} Ng4 {[%emt 0:03:48]} 20. Nf3 {[%emt 0:00:56]} Rhg8 {[%emt 0:03:20]} 21. Bh4 {[%emt 0:06:06]} Ne5 {[%emt 0:02:39]} 22. Nd2 {[%emt 0:04:05]} Bh6 {[%emt 0:03:35]} 23. Qc3+ {[%emt 0:00:29]} Nc6 {[%emt 0:00:11]} 24. Nb3 {[%emt 0:01:08]} Bg7 {[%emt 0:02:01]} 25. Qd2 {[%emt 0:00:02]} Bxb2 {[%emt 0:00:24]} 26. Rab1 {[%emt 0:00:04]} Be5 {[%emt 0:00:14]} 27. Bg3 {[%emt 0:00:17]} Bxg3 {[%emt 0:00:57]} 28. hxg3 {[%emt 0:00:01]} h5 {[%emt 0:00:44]} 29. Na5 {[%emt 0:02:07]} Nxa5 {[%emt 0:00:16]} 30. Qxa5 {[%emt 0:00:02]} Qc7 {[%emt 0:00:12]} 31. Rb6 {[%emt 0:02:57]} Rd6 {[%emt 0:00:57]} 32. Reb1 {[%emt 0:00:01]} Rxb6 {[%emt 0:00:58]} 33. Rxb6 {[%emt 0:00:07]} Kd8 {[%emt 0:01:21]} 34. Qb4 {[%emt 0:02:10]} Kc8 {[%emt 0:02:17]} 35. Qb2 {[%emt 0:01:17]} Bd7 {[%emt 0:00:23]} 36. Rh6 {[%emt 0:00:46]} f6 {[%emt 0:00:47]} 37. Rxh5 {[%emt 0:00:23]} (37. Qb4 {seems wilder.} Qe5 38. Rh7 e6 39. Qe7) 37... Qa5 {[%emt 0:00:28]} 38. Kh2 {[%emt 0:01:45]} Bg4 {[%emt 0:00:49]} 39. Rh4 {[%emt 0:00:24]} Kb8 {[%emt 0:00:41]} 40. Rh7 {[%emt 0:00:53]} Re8 $2 {[%emt 0:01:13]} (40... Qc5 $1 $11) 41. Bg6 $18 {[%emt 0:06:42]} Rf8 {[%emt 0:09:07]} 42. Rxe7 {[%emt 0:01:59]} Bc8 {[%emt 0:00:04]} 43. Bf5 {[%emt 0:09:04]} Qd8 {[%emt 0:01:51]} 44. Rg7 {[%emt 0:02:32]} (44. Qb4 $18 {Hoping for Bxc8.} a5 45. Qf4+ Ka7 46. Rh7) 44... Rh8+ $16 {[%emt 0:00:40] [#]} 45. Bh3 $1 {[%emt 0:00:14]} Bd7 {[%emt 0:03:59]} (45... d4 $16 46. Qb4 Qd5) 46. Kg1 {[%emt 0:02:59]} Bc6 {[%emt 0:00:09]} 47. Qd4 {[%emt 0:00:34]} Ka8 {[%emt 0:02:11]} 48. c3 {[%emt 0:01:25]} Rf8 {[%emt 0:01:16]} 49. Qc5 {[%emt 0:02:39]} Re8 {[%emt 0:04:21]} 50. Rf7 {[%emt 0:00:11]} Re4 {[%emt 0:00:36]} (50... Rg8 $142 51. Kh2 Re8) 51. Qf8 $18 {[%emt 0:02:04]} Re8 {[%emt 0:01:09]} 52. Qg7 {[%emt 0:01:28]} d4 {[%emt 0:01:31]} 53. cxd4 {[%emt 0:00:15]} (53. Qxf6 $2 Qxf6 54. Rxf6 dxc3 $19) 53... Qxd4 {[%emt 0:00:03]} 54. Qxf6 {[%emt 0:01:15]} ({But not} 54. Rxf6 $6 Qa1+ 55. Kh2 Ka7) 54... Qd1+ {[%emt 0:00:08]} 55. Kh2 {[%emt 0:00:04]} Re1 {[%emt 0:00:15]} 56. g4 {[%emt 0:00:58]} Qd3 {[%emt 0:02:49]} 57. f3 {[%emt 0:01:29]} (57. g5 $2 {gets mated.} Rh1+ 58. Kxh1 Qxh3+ 59. Kg1 Qxg2#) 57... Rd1 {[%emt 0:03:02]} (57... Be8 {might work better.} 58. Rc7 Qe3) 58. Qe5 {[%emt 0:01:22]} Qa3 {[%emt 0:01:01]} 59. g5 {[%emt 0:01:07]} Rd5 {[%emt 0:00:07]} 60. Qf4 {[%emt 0:00:28]} Qd3 {[%emt 0:00:52]} 61. Bf5 {[%emt 0:00:52]} Qc3 {[%emt 0:00:30]} 62. g6 {[%emt 0:00:22]} Rd4 {[%emt 0:00:26]} 63. Qg3 {[%emt 0:00:55]} Bd5 {[%emt 0:00:40]} 64. Rf8+ {[%emt 0:00:17]} Ka7 {[%emt 0:00:01]} 65. g7 {[%emt 0:00:32]} Bxa2 {[%emt 0:00:35]} 66. g8=Q {[%emt 0:00:59]} Bxg8 {[%emt 0:00:08]} 67. Rxg8 {[%emt 0:00:10]} Qb4 {[%emt 0:01:02]} 68. Be4 {[%emt 0:00:51]} (68. Qb8+ $142 Kb6 69. Rg6+ Kb5 70. Qxb7+ Ka4 71. Qxa6+ (71. Rxa6+ Kb3 $18) 71... Qa5 72. Bc2+ Kb4 73. Rb6+ Qxb6 74. Qxb6+ Kc4 75. Qb3+ Kc5 76. Qe3) 68... Rd6 $18 {[%emt 0:00:40]} 69. Qf2+ {[%emt 0:00:27]} Rb6 {[%emt 0:01:49]} 70. Rg6 {[%emt 0:00:20]} a5 {[%emt 0:00:08]} 71. Qxb6+ {[%emt 0:00:43]} Qxb6 {[%emt 0:00:03]} 72. Rxb6 {[%emt 0:00:06]} Kxb6 {[%emt 0:00:04]} 73. g4 {[%emt 0:00:11]} a4 {[%emt 0:00:13]} 74. g5 {[%emt 0:00:10]} 1-0

[Event "Czech Extraliga 2023-24"]
[Site "Czech Republic"]
[Date "2024.01.28"]
[Round "6.5"]
[White "LYS8 Kraus Tomas IM"]
[Black "UNI5 Jurcik Marian GM"]
[Result "1/2-1/2"]
[ECO "B06"]
[WhiteElo "2491"]
[BlackElo "2398"]
[Annotator "TA"]
[PlyCount "27"]
[EventDate "2023.10.14"]
[EventCountry "CZE"]
[SourceTitle "playchess.com"]
[Source "ChessBase"]
[SourceQuality "1"]
[TimeControl "40/5400+30:1800+30"]

{[%evp 11,27,37,32,17,20,0,2,4,11,0,6,-70,-68,-53,-45,-74,-45,-57]} 1. e4 {[%emt 0:00:04]} g6 {[%emt 0:01:19]} 2. d4 {[%emt 0:02:17]} Bg7 {[%emt 0:01:02]} 3. Nf3 {[%emt 0:04:17]} d6 {[%emt 0:01:39]} 4. Bc4 {[%emt 0:06:30]} Nf6 {[%emt 0:06:42]} 5. Qe2 {[%emt 0:01:23]} O-O {[%emt 0:05:23]} 6. O-O {[%emt 0:02:09]} Bg4 {[%emt 0:09:08]} 7. Rd1 {[%emt 0:23:43]} Nc6 {[%emt 0:04:53]} 8. Bb5 {[%emt 0:00:38]} Nd7 {[%emt 0:05:12] [#] ...Bxf3 would now be deadly.} 9. c3 {[%emt 0:09:47] The position is equal.} e5 {[%emt 0:01:52]} 10. d5 {[%emt 0:02:00]} Ne7 {[%emt 0:00:43]} 11. Nbd2 {[%emt 0:01:28]} (11. h3 $11 Bxf3 12. Qxf3) 11... f5 $15 {[%emt 0:11:50]} 12. h3 {[%emt 0:00:58]} Bh5 {[%emt 0:01:49]} 13. Bd3 {[%emt 0:01:03]} Bh6 {[%emt 0:11:38]} 14. Nf1 {[%emt 0:03:35] Black took control after the opening.   Weighted Error Value: White=0.21 (precise) /Black=0.04 (flawless) .  Mistake:       	White=1     	---        Inaccurate:     	White=1     	Black=1      OK:         	White=4     	Black=4      Best:        	---       	Black=1} 1/2-1/2

[Event "Czech Extraliga 2023-24"]
[Site "Czech Republic"]
[Date "2024.01.28"]
[Round "6.5"]
[White "TUR7 Simacek Pavel GM"]
[Black "LIN8 Smolik Jachym FM"]
[Result "1/2-1/2"]
[ECO "B15"]
[WhiteElo "2452"]
[BlackElo "2339"]
[Annotator "TA"]
[PlyCount "61"]
[EventDate "2023.10.14"]
[EventCountry "CZE"]
[SourceTitle "playchess.com"]
[Source "ChessBase"]
[SourceQuality "1"]
[TimeControl "40/5400+30:1800+30"]

{[%evp 15,61,15,19,22,20,13,22,9,13,12,10,20,16,0,10,10,9,4,16,12,22,27,26,0,19,0,9,0,0,0,0,0,0,0,13,0,0,0,0,0,0,0,0,0,0,0,0,0]} 1. e4 {[%emt 0:00:10]} c6 {[%emt 0:00:06]} 2. d4 {[%emt 0:00:12]} d5 {[%emt 0:00:02]} 3. Nd2 {[%emt 0:00:40]} dxe4 {[%emt 0:00:06]} 4. Nxe4 {[%emt 0:00:04]} Nf6 {[%emt 0:00:07]} 5. Nxf6+ {[%emt 0:00:50]} exf6 {[%emt 0:00:02]} 6. c3 {[%emt 0:00:10]} Bd6 {[%emt 0:00:04]} 7. Bd3 {[%emt 0:00:06]} O-O {[%emt 0:00:08]} 8. Ne2 {[%emt 0:01:46][%cal Bg1e2,Be2g3,Bg3e4][%mdl 32]} Re8 {[%emt 0:00:18]} 9. O-O {[%emt 0:00:17]} Nd7 {[%emt 0:00:36][%cal Bb8d7,Bd7f8,Bf8g6,Bg6f4,Bf4e6,Be6g5][%mdl 32]} 10. Bf4 {[%emt 0:00:17]} Nf8 {[%emt 0:00:31]} 11. Qd2 {[%emt 0:00:08]} Ng6 {[%emt 0:05:08][%cal Oe8e2] [#] ...Rxe2! is the strong threat.} 12. Bxd6 {[%emt 0:14:25]} Qxd6 {[%emt 0:00:03]} 13. Ng3 {[%emt 0:00:07]} Nf4 {[%emt 0:15:30]} 14. Ne4 {[%emt 0:00:41]} Qc7 {[%emt 0:00:15]} 15. Rfe1 {[%emt 0:00:29][%cal Oe4f6] [#] Hoping for Nxf6+!} Be6 {[%emt 0:08:30]} 16. Bf1 {[%emt 0:02:00]} Rad8 {[%emt 0:06:54]} 17. Nc5 {[%emt 0:12:49]} b6 {[%emt 0:10:02]} 18. Nxe6 {[%emt 0:00:41]} Nxe6 {[%emt 0:01:06]} 19. Qc2 {[%emt 0:05:46]} g6 {[%emt 0:08:11] The position is equal.} 20. Re3 {[%emt 0:05:54]} Ng5 {[%emt 0:02:48]} 21. Rae1 {[%emt 0:01:07][%cal Ba1e1,Be1e3,Be3d3,Bd3d1][%mdl 32]} Rxe3 {[%emt 0:00:19]} 22. Rxe3 {[%emt 0:00:20]} c5 {[%emt 0:03:22]} 23. dxc5 {[%emt 0:07:50]} Qxc5 {[%emt 0:01:46]} 24. Rd3 {[%emt 0:16:09]} (24. h4 $5 Ne6 $8 25. Rd3 $11) 24... Re8 {[%emt 0:02:30][%cal Bd8e8,Be8e4,Be4g4][%mdl 32]} 25. Rd1 {[%emt 0:02:20]} Kg7 {[%emt 0:01:19]} 26. Qa4 {[%emt 0:03:04]} Re4 {[%emt 0:02:12]} 27. Qb5 {[%emt 0:00:19]} (27. Qxa7 $2 {too greedy.} Rg4 28. g3 Ne4 $19) 27... Qc7 {[%emt 0:04:40]} 28. Qd3 {[%emt 0:13:36]} Qe5 {[%emt 0:08:27]} 29. Qd6 {[%emt 0:01:27]} Rg4 {[%emt 0:03:04]} 30. Qd3 {[%emt 0:02:28] Dodges Nh3+} Qd5 {[%emt 0:04:38]} 31. Qxd5 {[%emt 0:08:15] A rather calm draw.   Weighted Error Value: White=0.05 (flawless) /Black=0.03 (flawless) .  Inaccurate:     	White=1     	---        OK:         	White=7     	Black=11} 1/2-1/2

[Event "Czech Extraliga 2023-24"]
[Site "Czech Republic"]
[Date "2024.01.28"]
[Round "6.5"]
[White "KRO9 Rubes Jan FM"]
[Black "PAR7 Laznicka Viktor GM"]
[Result "1-0"]
[ECO "E11"]
[WhiteElo "2415"]
[BlackElo "2603"]
[Annotator "TA"]
[PlyCount "91"]
[EventDate "2023.10.14"]
[EventCountry "CZE"]
[SourceTitle "playchess.com"]
[Source "ChessBase"]
[SourceQuality "1"]
[TimeControl "40/5400+30:1800+30"]

{[%evp 34,91,40,60,41,56,56,0,0,0,0,0,15,6,5,0,44,44,48,58,111,89,120,128,195,190,197,205,170,20,37,32,242,0,270,272,435,440,526,543,571,630,627,598,708,704,1656,1656,2208,2235,2135,1844,12796,2487,10895,7201,6514,8756,5469,5343]} 1. d4 {[%emt 0:00:03]} Nf6 {[%emt 0:00:09]} 2. Nf3 {[%emt 0:00:37]} e6 {[%emt 0:00:05]} 3. c4 {[%emt 0:01:41]} b6 {[%emt 0:00:13]} 4. Nc3 {[%emt 0:00:29]} Bb4 {[%emt 0:00:10]} 5. Bd2 {[%emt 0:00:26]} Bb7 {[%emt 0:00:20]} 6. e3 {[%emt 0:00:06]} a5 {[%emt 0:00:26]} 7. Bd3 {[%emt 0:00:07]} d6 {[%emt 0:00:23]} 8. Qc2 {[%emt 0:03:05]} Nbd7 {[%emt 0:01:41]} 9. a3 {[%emt 0:08:13] E11: Bogo-Indian.} Bxc3 {[%emt 0:00:12]} 10. Bxc3 {[%emt 0:00:02]} c5 {[%emt 0:05:59]} 11. Rd1 $146 {[%emt 0:14:33]} ({Predecessor:} 11. O-O O-O 12. Rad1 h6 13. Rd2 Qe7 14. Rfd1 cxd4 15. Nxd4 Rfc8 16. Nb5 d5 17. Bf1 Bc6 18. Nd4 Bb7 19. Nb5 Bc6 20. Nd4 Bb7 21. Nb5 Bc6 {½-½ Sukandar,I (2383)-Kulaots,K (2525) Kragero op 2023 (3)}) 11... Qe7 {[%emt 0:06:08]} 12. O-O {[%emt 0:02:36]} a4 {[%emt 0:05:56]} 13. e4 {[%emt 0:11:32]} cxd4 {[%emt 0:14:31]} 14. Nxd4 {[%emt 0:02:28]} Nc5 {[%emt 0:00:02]} 15. Nb5 {[%emt 0:06:38]} Nfxe4 {[%emt 0:16:27]} 16. Bxe4 {[%emt 0:01:04]} Bxe4 {[%emt 0:00:49]} 17. Qe2 {[%emt 0:05:48]} O-O-O {[%emt 0:14:07]} 18. f3 {[%emt 0:03:33]} (18. Bxg7 Rhg8 19. f3 Bd3 20. Rxd3 Nxd3 $11 (20... Rxg7 21. Rd4 $16)) 18... Bc6 {[%emt 0:05:38]} 19. Bxg7 {[%emt 0:01:38]} Rhg8 {[%emt 0:00:07]} 20. Nd4 {[%emt 0:02:01]} (20. Bd4 $14) 20... Bb7 $11 {[%emt 0:01:13]} 21. Bh6 $1 {[%emt 0:02:21]} e5 {[%emt 0:02:26]} 22. Nb5 {[%emt 0:03:33]} Ba6 {[%emt 0:09:49]} 23. Be3 {[%emt 0:01:07]} d5 $1 {[%emt 0:01:17]} 24. Kh1 {[%emt 0:02:40]} (24. Rxd5 $2 Rxd5 (24... Bxb5 25. Rxd8+ Rxd8 26. cxb5 $18) 25. cxd5 Qd7 $19) (24. cxd5 $2 Qd7 25. Bxc5 Bxb5 $19) 24... Kb7 {[%emt 0:01:49]} 25. Bxc5 $1 {[%emt 0:01:49]} (25. Rxd5 $2 Rxd5 (25... Bxb5 $2 26. Bxc5 Qc7 27. Rxd8 $18) 26. cxd5 Qd7 $19) (25. cxd5 $2 Qd7 26. Qc2 (26. Bxc5 $2 Bxb5 27. Qxe5 Bxf1 $19) 26... Qxb5 $19) 25... bxc5 {[%emt 0:01:00]} 26. Qc2 $1 {[%emt 0:06:25]} (26. cxd5 $2 Qd7 27. Rfe1 Bxb5 $19 (27... Qxb5 $2 28. Qe4 $19)) 26... dxc4 {[%emt 0:04:35]} ({Black should play} 26... Rg6 $14) 27. Nc3 {[%emt 0:00:25]} (27. Qxc4 $2 Kb6 28. Qxa4 (28. Rxd8 $2 Rxd8 29. Qxa4 Bxb5 $19) 28... Bxb5 $19) (27. Qe4+ {with more complications.} Kb6 28. Nc3 Qg5 29. Nxa4+ Kb5 30. Nc3+) 27... Rd4 {[%emt 0:00:12]} 28. Qxh7 {[%emt 0:00:42]} Qg5 {[%emt 0:03:20]} (28... Rg6 $16 {was called for.}) 29. Qxf7+ $18 {[%emt 0:00:41]} (29. Nxa4 $2 Qxg2#) 29... Ka8 {[%emt 0:00:14]} 30. g3 {[%emt 0:07:01]} (30. Nxa4 $2 Qxg2#) 30... Rh8 {[%emt 0:00:21] [#]} 31. Rxd4 {[%emt 0:04:44]} (31. Nxa4 $2 Qh6 $19 (31... Qxg3 32. Qe8+ Rxe8 33. hxg3 $15) (31... Qxg3 32. Qe8+ Rxe8 33. hxg3 $17)) (31. Ne4 $1 $18 {[%cal Re4g5]} Qh6 32. h4 (32. Nxc5 $2 Qxh2#)) 31... exd4 $11 {[%emt 0:01:12]} (31... cxd4 $6 32. Ne4 Qh5 33. Qd5+ Bb7 34. Qa5+ Kb8 35. h4 $16) 32. Ne4 {[%emt 0:03:02]} Qh6 $2 {[%emt 0:01:25] [#]} (32... Qe5 $1 $14) 33. h4 $2 {[%emt 0:00:30]} ({White must play} 33. Rf2 $1 $18) 33... Qc6 $2 {[%emt 0:00:54][%mdl 8192]} (33... c3 $1 $11 {and Black has nothing to worry.} 34. Nxc5 c2 35. Nxa6 c1=R (35... c1=B $2 36. Nc5 $18) (35... c1=Q 36. Nc7+ Kb8 37. Na6+ Ka8 38. Nc7+ Kb8 39. Na6+ Ka8 $11) 36. Qd5+ (36. Rxc1 Qxc1+ 37. Kg2 Qxb2+ 38. Kh3 Qb7 $11) 36... Ka7) 34. Rf2 $18 {[%emt 0:00:57]} c3 {[%emt 0:01:06]} (34... d3 $142 35. Kg2 Rc8) 35. bxc3 $18 {[%emt 0:00:07]} d3 {[%emt 0:00:03]} 36. Kg2 {[%emt 0:02:18]} Rd8 {[%emt 0:00:50]} 37. h5 {[%emt 0:00:29]} Bb7 {[%emt 0:00:52]} 38. Rb2 {[%emt 0:01:42]} Rd7 {[%emt 0:00:31]} 39. Qf4 {[%emt 0:00:07]} Qd5 {[%emt 0:00:28]} 40. Nf6 {[%emt 0:02:15]} Qxf3+ {[%emt 0:01:51]} 41. Qxf3 {[%emt 0:30:53]} Bxf3+ {[%emt 0:30:02]} 42. Kxf3 {[%emt 0:00:02]} d2 {[%emt 0:00:09]} 43. Rxd2 {[%emt 0:00:04]} (43. Nxd7 $2 {too greedy.} d1=Q+ (43... d1=R $2 {loses.} 44. Nxc5 Rf1+ 45. Kg4 $18) 44. Re2 Qxd7 $19) 43... Rxd2 {[%emt 0:00:04]} 44. g4 {[%emt 0:00:00]} Rd3+ {[%emt 0:00:00]} 45. Ke4 {[%emt 0:00:00]} Rxc3 {[%emt 0:00:00]} 46. h6 {[%emt 0:00:00]} 1-0

[Event "Czech Extraliga 2023-24"]
[Site "Czech Republic"]
[Date "2024.01.28"]
[Round "6.6"]
[White "UNI6 Rydl Jiri FM"]
[Black "LYS9 Baklan Vladimir GM"]
[Result "1/2-1/2"]
[ECO "E60"]
[WhiteElo "2404"]
[BlackElo "2546"]
[Annotator "TA"]
[PlyCount "105"]
[EventDate "2023.10.14"]
[EventCountry "CZE"]
[SourceTitle "playchess.com"]
[Source "ChessBase"]
[SourceQuality "1"]
[TimeControl "40/5400+30:1800+30"]

{[%evp 9,105,17,31,30,31,25,13,0,0,0,0,0,0,12,22,4,20,0,0,0,30,25,27,0,11,-1,-2,0,-7,-4,-5,-26,-31,-42,-43,-47,-46,-46,-52,-47,-43,-41,-33,-32,-22,-31,-28,-72,-59,-132,-115,-131,-128,-117,-75,-120,-153,-177,-19,-27,28,0,0,0,0,0,0,0,71,86,87,0,0,0,8,8,8,0,0,-9,-10,-19,-22,-20,-23,-22,0,0,0,0,0,-15,-15,-15,0,0,0,0]} 1. c4 {[%emt 1:31:00]} Nf6 {[%emt 0:00:06]} 2. Nf3 {[%emt 0:00:00]} g6 {[%emt 0:02:25]} 3. b3 {[%emt 0:00:00]} Bg7 {[%emt 0:02:48]} 4. Bb2 {[%emt 0:00:00]} d6 {[%emt 0:00:27]} 5. d4 {[%emt 0:00:00]} c5 {[%emt 0:03:58]} 6. dxc5 {[%emt 0:00:00]} Qa5+ {[%emt 0:00:08]} 7. Qd2 {[%emt 0:00:00]} Qxd2+ {[%emt 0:02:11]} 8. Nbxd2 {[%emt 0:00:00]} dxc5 {[%emt 0:00:04]} 9. g3 {[%emt 0:00:00]} b6 {[%emt 0:01:20]} 10. Bg2 {[%emt 0:00:00]} Bb7 {[%emt 0:00:09]} 11. O-O {[%emt 0:00:00]} Nh5 {[%emt 0:02:21]} 12. Rab1 {[%emt 0:00:00]} Nd7 {[%emt 0:04:05]} 13. Ne1 {[%emt 0:00:00]} O-O-O {[%emt 0:02:15]} 14. Nd3 {[%emt 0:00:00]} Bxg2 {[%emt 0:10:57]} 15. Kxg2 {[%emt 0:00:00]} Rhe8 {[%emt 0:00:06]} 16. a3 {[%emt 0:00:00]} f5 {[%emt 0:05:02]} 17. Bxg7 {[%emt 0:00:00]} Nxg7 {[%emt 0:00:13]} 18. b4 {[%emt 0:00:00]} e5 {[%emt 0:01:40]} 19. Nb3 {[%emt 0:00:00]} Ne6 {[%emt 0:04:12]} 20. bxc5 {[%emt 0:00:00]} e4 {[%emt 0:02:03]} 21. cxb6 {[%emt 0:00:00]} exd3 {[%emt 0:08:57]} 22. bxa7 {[%emt 0:00:00]} Kc7 {[%emt 0:00:45]} (22... dxe2 $2 23. a8=Q+ (23. a8=B $2 exf1=R 24. Rxf1 Kc7 $19) 23... Kc7 24. Qa5+ Kd6 25. Rfe1 $18 (25. Qd2+ Ke7 $18)) 23. exd3 {[%emt 0:00:00]} Ra8 {[%emt 0:00:06]} 24. Rfe1 $1 {[%emt 0:00:00]} Rxa7 {[%emt 0:00:43][%cal Od7f6]} 25. Nd4 {[%emt 0:00:00] aiming for Nb5+.} Ra6 $36 {[%emt 0:00:06][%cal Od7f6][%mdl 2048] Black is more active.} 26. Nb5+ {[%emt 0:00:00]} Kd8 {[%emt 0:00:10]} 27. d4 {[%emt 0:00:00]} Nc7 {[%emt 0:03:50]} 28. Rxe8+ {[%emt 0:00:00]} Nxe8 {[%emt 0:00:15]} 29. c5 {[%emt 0:00:00] Against Nd6} ({Better is} 29. Rb4 $15) 29... Nc7 {[%emt 0:16:19]} 30. Nd6 {[%emt 0:00:00] [#]} Nf6 $1 {[%emt 0:00:27]} 31. Rb8+ {[%emt 0:00:18]} Ke7 {[%emt 0:01:10][%cal Oe7e6]} 32. Nc8+ {[%emt 0:05:12] [#]} Ke6 $1 {[%emt 0:04:22][%cal Oe6d5]} 33. Nb6 {[%emt 0:02:45]} (33. Rb6+ Rxb6 34. cxb6 Kd7 $15) 33... Nfd5 $2 {[%emt 0:03:17]} (33... Rxa3 $19 {And now ...Rd3 would win.} 34. Nc4 Ra6) 34. a4 $1 $11 {[%emt 0:00:49]} Ke7 {[%emt 0:08:35]} (34... Nf6 $142) 35. h4 {[%emt 0:00:23][%mdl 1024] White has compensation.} Nc3 {[%emt 0:04:09]} 36. Rb7 {[%emt 0:01:22]} Kd8 {[%emt 0:00:06]} 37. Rb8+ {[%emt 0:00:03]} Ke7 {[%emt 0:00:02]} 38. Rh8 {[%emt 0:00:41]} N7d5 {[%emt 0:02:27]} (38... Ne6 $1 $11 {remains equal.}) 39. Rxh7+ $16 {[%emt 0:00:11]} Ke8 {[%emt 0:00:20]} 40. h5 {[%emt 0:02:04]} (40. a5 $16) 40... gxh5 $1 $11 {[%emt 0:00:59]} (40... Nxb6 41. cxb6 Rxb6 42. h6 $16) 41. Nc4 {[%emt 0:30:10]} Rxa4 {[%emt 0:33:25]} 42. Nd6+ {[%emt 0:03:29]} Kf8 $1 {[%emt 0:00:03]} 43. Nxf5 {[%emt 0:01:40][%cal Oc5c6]} Ra2 {[%emt 0:00:00]} 44. Rd7 {[%emt 0:00:00]} Nf6 {[%emt 0:00:00] A dynamic duo of knights.} 45. Rd8+ {[%emt 0:00:00]} Kf7 {[%emt 0:00:00]} 46. c6 {[%emt 0:00:00] c7 would now be deadly.} Ncd5 {[%emt 0:00:00]} 47. Kf3 {[%emt 0:00:00]} Rc2 {[%emt 0:00:00] The position is equal.} 48. Rd7+ {[%emt 0:00:00]} Kg6 {[%emt 0:00:06]} (48... Nxd7 $2 49. cxd7 Rc3+ 50. Kg2 $18) 49. Nh4+ {[%emt 0:00:00]} Kh6 {[%emt 0:00:04]} 50. Rd6 {[%emt 0:00:00]} Kg7 {[%emt 0:01:53]} 51. Nf5+ {[%emt 0:00:18]} Kf7 {[%emt 0:01:16]} 52. Rd7+ {[%emt 0:01:00]} Kg6 {[%emt 0:00:46]} (52... Nxd7 $2 {loses.} 53. cxd7 Ne7 54. Nh6+ (54. d8=B $2 {is the wrong capture.} Nxf5 55. Bb6 Ne7 $19) (54. d8=N+ Ke8 $11) (54. d8=Q Nxf5 55. d5 Rd2 $18) 54... Ke6 55. d8=Q $18 (55. d8=B Nd5 $11)) 53. Nh4+ {[%emt 0:00:40] Weighted Error Value: White=0.11 (very precise) /Black=0.12 (very precise) .  Mistake:       	White=2     	Black=3      Inaccurate:     	White=4     	Black=2      OK:         	White=16    	Black=20     Best:        	White=4     	Black=5      Strong:       	White=2     	Black=4} 1/2-1/2